bitfinex/quotes_ETHUSD_20240731
["timestamp","ask_amount","ask_price","bid_price","bid_amount"]
[1722403493286,1.92022115,3276.9,3276.3,3.74207886]
[1722403493495,5.26642115,3277.0,3276.3,3.74207886]
[1722403493699,1.92027304,3276.9,3276.3,3.74207886]
[1722403493901,2.01123364,3276.9,3276.3,3.05215]
[1722403496226,0.0909606,3276.9,3276.3,3.05215]
[1722403496390,3.05191,3276.7,3276.0,0.76853607]
[1722403496729,3.05227,3276.3,3275.9,3.0]
[1722403497042,4.25711959,3276.5,3275.8,3.0]
[1722403497210,0.0909606,3276.2,3275.8,3.0]
[1722403497529,3.05248,3276.1,3275.7,7.41]
[1722403497710,3.1434406,3276.1,3275.7,7.41]
[1722403498111,0.0909606,3276.1,3275.7,7.41]
[1722403499625,1.92020788,3276.3,3275.7,7.41]
[1722403499822,0.0909793,3276.0,3275.7,8.761582]
[1722403500132,4.12716,3276.4,3275.7,8.761582]
[1722403500133,4.12716,3276.4,3275.7,1.351582]
[1722403500437,2.3369,3276.5,3275.7,1.351582]
[1722403500438,4.25683167,3276.5,3275.8,1.1360506]
[1722403500634,0.0909793,3276.3,3275.9,3.05257]
[1722403500791,7.30902243,3276.5,3275.9,3.05257]
[1722403501145,0.0909793,3276.2,3275.9,3.05257]
[1722403501355,0.0909793,3276.1,3275.9,3.05257]
[1722403501958,0.0909793,3276.0,3275.8,6.58937]
[1722403502248,1.92009243,3276.4,3275.9,0.964208]
[1722403502549,0.0909793,3275.9,3275.8,6.58937]
[1722403502759,7.30859065,3276.5,3275.8,6.58937]
[1722403502925,0.0909793,3275.9,3275.8,6.58937]
[1722403503872,4.25656065,3276.5,3275.9,3.05258]
[1722403504025,4.25656065,3276.5,3275.9,3.11362557]
[1722403504229,2.3369,3276.5,3275.9,4.08392913]
[1722403504438,7.29,3276.6,3275.9,4.08392913]
[1722403504640,7.29,3276.6,3275.9,4.08384913]
[1722403505049,7.29,3276.6,3276.0,1.075]
[1722403505347,7.29,3276.6,3276.1,3.05234]
[1722403505557,7.29,3276.6,3276.2,0.47377264]
[1722403505759,7.29,3276.6,3276.2,3.52608264]
[1722403505937,0.09092316,3276.5,3276.2,0.47377264]
[1722403506137,0.09092316,3276.5,3276.0,3.05243]
[1722403506342,3.14299316,3276.5,3275.8,6.58936]
[1722403506911,3.14299316,3276.5,3275.9,3.05259]
[1722403507554,3.14299316,3276.5,3276.0,35.0]
[1722403508254,3.05213,3276.4,3276.0,35.0]
[1722403509043,2.4265,3276.2,3275.6,3.05283]
[1722403509415,1.91950108,3276.3,3275.7,35.0]
[1722403509633,0.09092316,3276.1,3275.7,38.04901288]
[1722403509863,4.97172108,3276.3,3275.7,38.04901288]
[1722403510328,0.09092316,3276.2,3275.7,41.10178288]
[1722403510675,0.12008596,3276.1,3275.7,38.04901288]
[1722403511014,0.09092316,3276.0,3275.7,38.04901288]
[1722403511229,0.12008596,3275.9,3275.8,12.52237288]
[1722403511632,0.12008596,3275.9,3275.8,9.47336]
[1722403511831,0.21096792,3275.9,3275.8,44.47336]
[1722403512454,0.12008596,3275.9,3275.8,44.47336]
[1722403521573,0.12008596,3275.9,3275.8,47.47336]
[1722403524168,0.12008596,3275.9,3275.8,50.52604]
[1722403524388,0.12008596,3275.9,3275.8,53.67045288]
[1722403524898,4.34217425,3277.1,3276.7,3.0518]
[1722403525110,1.91967425,3277.2,3276.8,3.05173]
[1722403525260,2.3067,3277.4,3276.8,3.05173]
[1722403525261,0.09089321,3277.0,3276.8,3.05173]
[1722403525608,3.05112,3277.5,3276.5,2.3884]
[1722403525609,1.91967425,3277.5,3277.1,3.05144]
[1722403525758,4.39074888,3277.8,3277.3,4.12622]
[1722403525962,1.92034888,3277.8,3277.4,38.05119]
[1722403526162,4.71080703,3278.1,3277.4,38.05119]
[1722403526163,1.92034888,3278.0,3277.4,38.05119]
[1722403526357,2.77197477,3278.0,3277.4,38.05119]
[1722403527088,1.92034888,3277.9,3277.4,35.0]
[1722403527419,5.82261477,3278.0,3277.4,35.0]
[1722403527620,6.89761477,3278.0,3277.4,35.0]
[1722403528882,4.97726589,3278.0,3277.4,35.0]
[1722403529127,6.04334957,3278.0,3277.4,35.0]
[1722403529311,4.12564,3278.0,3277.4,35.0]
[1722403530343,4.12564,3278.0,3277.4,38.05119]
[1722403530344,1.075,3278.0,3277.4,38.05119]
[1722403530510,1.075,3278.0,3277.4,3.05119]
[1722403530710,1.075,3278.0,3277.5,0.305119]
[1722403531105,2.4704,3278.1,3277.5,35.305119]
[1722403531412,5.43950957,3278.4,3277.6,3.11197]
[1722403531615,3.5218,3278.4,3277.7,3.05085]
[1722403531823,3.5218,3278.4,3277.8,3.05082]
[1722403532023,3.5218,3278.4,3277.8,3.11183265]
[1722403532248,3.5218,3278.4,3277.8,38.11183265]
[1722403532554,2.4468,3278.4,3277.8,38.11183265]
[1722403533055,3.5218,3278.4,3277.8,38.05082]
[1722403533233,1.075,3278.2,3277.8,35.0]
[1722403535038,4.02456268,3278.4,3277.8,35.0]
[1722403535039,5.09956268,3278.4,3277.8,35.0]
[1722403535255,3.5218,3278.4,3277.8,35.0]
[1722403535767,0.09164916,3278.3,3277.8,35.0]
[1722403536280,0.09164916,3278.3,3277.8,3.05076]
[1722403536575,0.09164916,3278.3,3277.8,3.11176999]
[1722403536879,11.4151,3278.6,3277.9,3.05073]
[1722403537076,0.09164916,3278.2,3277.9,3.05073]
[1722403537229,2.4803,3278.7,3277.9,3.05073]
[1722403537230,2.4803,3278.7,3277.9,6.53552289]
[1722403537425,7.29,3278.9,3278.2,3.05044]
[1722403537670,7.29,3278.9,3278.2,38.05044]
[1722403538279,7.29,3278.9,3278.3,1.13600374]
[1722403538981,7.29,3278.9,3278.4,35.0]
[1722403539273,7.29,3278.9,3278.5,3.11116703]
[1722403539967,7.29,3278.9,3278.6,35.0]
[1722403540169,3.04943,3279.3,3278.6,35.0]
[1722403541431,3.04943,3279.3,3278.6,38.05008]
[1722403541652,3.04956,3279.2,3278.6,35.0]
[1722403542433,3.04989,3278.9,3278.0,3.0506]
[1722403542752,2.3563,3279.1,3278.1,3.05048]
[1722403542950,2.3563,3279.1,3278.2,35.0]
[1722403543286,3.04996,3278.8,3277.9,5.40123]
[1722403543435,3.05005,3278.7,3278.0,4.281123]
[1722403543640,3.05005,3278.7,3278.1,35.0]
[1722403543937,3.05027,3278.4,3277.5,12.79288]
[1722403544132,2.2607,3278.4,3277.5,7.41]
[1722403544381,2.2607,3278.4,3277.6,0.741]
[1722403544545,5.41243,3278.8,3277.9,3.05072]
[1722403544744,3.04999,3278.7,3277.9,3.05072]
[1722403544987,3.05037,3278.3,3277.6,0.741]
[1722403545192,2.3625,3278.8,3277.7,3.05091]
[1722403545193,3.05018,3278.5,3277.7,3.05091]
[1722403545341,3.05018,3278.5,3277.8,38.430001]
[1722403545536,0.09199331,3278.4,3277.8,38.430001]
[1722403545885,3.05001,3278.7,3277.9,3.05073]
[1722403546391,3.04984,3278.9,3278.0,2.34770912]
[1722403546542,0.09199331,3278.6,3278.0,2.2867]
[1722403546741,3.04984,3278.9,3278.1,3.584283]
[1722403546951,3.0499,3278.8,3278.1,0.533743]
[1722403547136,3.05001,3278.7,3278.1,0.533743]
[1722403547340,3.14200331,3278.7,3278.1,0.533743]
[1722403548254,3.14200331,3278.7,3278.0,5.33733]
[1722403548761,0.09199331,3278.7,3278.1,3.05054]
[1722403548946,0.55,3279.0,3278.1,3.11154403]
[1722403548947,3.04989,3278.8,3278.1,3.11154403]
[1722403549152,0.09196714,3278.7,3278.2,38.05045]
[1722403549349,0.55,3279.0,3278.3,3.04901288]
[1722403549559,1.90868457,3279.9,3278.3,3.04901288]
[1722403549560,3.04945,3279.3,3278.4,0.061004]
[1722403550583,3.04945,3279.3,3278.6,3.05005]
[1722403550879,5.36134,3279.4,3278.7,3.04998]
[1722403551291,0.0922177,3279.3,3278.5,3.05011]
[1722403551439,3.1416477,3279.3,3278.6,0.6161314]
[1722403551644,3.04953,3279.2,3278.6,0.6161314]
[1722403552080,0.09229622,3279.1,3278.6,0.6161314]
[1722403553079,0.09229622,3279.1,3278.6,3.6661814]
[1722403553263,0.09229622,3279.1,3278.7,0.67772872]
[1722403553463,3.04943,3279.3,3278.6,3.05005]
[1722403553798,0.09229622,3279.2,3278.6,3.05005]
[1722403554102,3.04943,3279.3,3278.6,3.05005]
[1722403554454,0.09229622,3279.2,3278.6,3.05005]
[1722403554649,0.09229622,3279.2,3278.6,3.36115459]
[1722403554844,3.04943,3279.3,3278.6,3.36115459]
[1722403555275,0.09229622,3279.2,3278.6,3.36115459]
[1722403555589,3.04943,3279.3,3278.6,3.36115459]
[1722403555965,0.09229622,3279.2,3278.6,3.36115459]
[1722403556165,3.04943,3279.3,3278.6,3.36115459]
[1722403556493,0.09229622,3279.2,3278.6,3.36115459]
[1722403556790,3.04943,3279.3,3278.6,3.36115459]
[1722403557089,3.14181622,3279.2,3278.6,3.36115459]
[1722403557482,3.04977,3279.0,3278.4,0.06099586]
[1722403557795,3.04968,3279.1,3278.4,0.06099586]
[1722403558010,3.04968,3279.1,3278.4,3.11125586]
[1722403558152,0.09229622,3279.0,3278.4,3.11125586]
[1722403558354,0.09229622,3279.0,3278.5,0.92105987]
[1722403558587,3.14201622,3279.0,3278.5,0.92105987]
[1722403559453,3.14201622,3279.0,3278.2,35.0]
[1722403559454,3.04987,3278.9,3278.2,38.05043]
[1722403560170,0.09229622,3278.8,3278.2,38.05043]
[1722403560351,3.04987,3278.9,3278.2,38.05043]
[1722403560552,0.09229622,3278.8,3278.2,38.05043]
[1722403560752,3.04987,3278.9,3278.2,38.05043]
[1722403560982,3.04987,3278.9,3278.3,3.04901288]
[1722403560983,0.09229622,3278.8,3278.3,3.04901288]
[1722403561151,3.04987,3278.9,3278.3,3.04901288]
[1722403561363,0.09229622,3278.8,3278.3,3.04901288]
[1722403561566,3.0499,3278.8,3278.3,3.04901288]
[1722403561796,3.14245329,3278.7,3278.4,3.04901288]
[1722403561999,3.05,3278.7,3278.3,3.04901288]
[1722403562385,3.04987,3278.9,3278.3,3.04901288]
[1722403562587,3.14235329,3278.8,3278.3,3.04901288]
[1722403562785,3.14235329,3278.8,3278.1,3.05052]
[1722403563156,3.14235329,3278.8,3278.2,35.0]
[1722403563500,3.05002,3278.7,3278.2,35.0]
[1722403564001,3.0498,3278.9,3278.2,35.0]
[1722403564156,3.0498,3278.9,3278.3,6.09936288]
[1722403564356,0.09245329,3278.8,3278.3,6.09936288]
[1722403564668,3.04952,3279.3,3278.4,3.11126139]
[1722403564867,3.04967,3279.1,3278.5,0.61602743]
[1722403565485,3.14215206,3279.0,3278.5,0.61602743]
[1722403565780,3.14215206,3279.0,3278.5,0.67702345]
[1722403566315,0.09244206,3279.0,3278.5,0.67702345]
[1722403566485,0.09244206,3279.0,3278.5,6.02288345]
[1722403566682,3.04959,3279.2,3278.6,0.90731335]
[1722403566889,3.04959,3279.2,3278.6,0.96830932]
[1722403567129,0.09248692,3279.1,3278.7,35.0]
[1722403567689,3.04959,3279.2,3278.7,35.0]
[1722403568078,0.09253929,3279.1,3278.7,35.0]
[1722403568423,3.04906,3279.7,3278.9,3.04972]
[1722403568623,3.04906,3279.7,3278.7,38.04901288]
[1722403568624,0.09256172,3279.6,3279.1,2.3506]
[1722403568921,0.09256172,3279.6,3279.1,2.41158425]
[1722403569127,0.09256172,3279.6,3279.2,35.24115843]
[1722403570189,3.04889,3279.9,3279.2,35.24115843]
[1722403570529,0.09267012,3279.8,3279.2,35.24115843]
[1722403571818,3.04906,3279.7,3279.2,35.24115843]
[1722403572020,0.09272618,3279.6,3279.2,35.24115843]
[1722403572184,0.09272618,3279.6,3279.3,3.04901288]
[1722403572693,0.09272618,3279.6,3279.2,0.24115843]
[1722403572897,0.09272618,3279.6,3279.3,35.0]
[1722403573295,0.09272618,3279.6,3279.4,0.06098313]
[1722403573502,10.33868,3280.1,3279.4,3.11030313]
[1722403573702,0.09275608,3279.5,3279.4,3.11030313]
[1722403573912,10.33868,3280.1,3279.4,38.44544929]
[1722403574089,0.09275608,3279.5,3279.4,38.38446616]
[1722403574636,10.33874,3280.1,3279.4,35.33514616]
[1722403574815,7.29,3280.1,3279.5,3.04901288]
[1722403574990,10.33869,3280.1,3279.5,3.04901288]
[1722403576127,3.04881,3280.0,3279.5,3.04901288]
[1722403576331,3.04906,3279.7,3279.1,2.3506]
[1722403576679,3.04906,3279.7,3279.1,37.3506]
[1722403577488,3.0489,3279.9,3279.1,37.3506]
[1722403577827,3.0489,3279.9,3279.2,6.09846288]
[1722403578028,3.0489,3279.9,3279.3,0.06097889]
[1722403578189,3.04871,3280.1,3279.3,3.11038889]
[1722403578802,3.04879,3280.0,3279.3,3.11038889]
[1722403579089,3.04903,3279.8,3279.2,3.04901288]
[1722403579400,3.04903,3279.8,3279.3,3.04901288]
[1722403579827,3.04913,3279.7,3279.3,3.04901288]
[1722403580043,3.04925,3279.5,3279.2,3.04901288]
[1722403580548,0.09291302,3279.4,3279.2,3.04901288]
[1722403580698,0.09291302,3279.4,3279.1,35.0]
[1722403580896,3.04915,3279.6,3279.1,35.0]
[1722403581122,4.29026167,3280.0,3279.1,35.0]
[1722403581328,3.14216302,3279.5,3279.1,35.0]
[1722403581529,3.04925,3279.5,3279.1,35.0]
[1722403581843,0.09291302,3279.4,3279.1,35.0]
[1722403582054,0.09291302,3279.4,3279.2,3.04901288]
[1722403582347,3.04949,3279.3,3278.8,2.4551]
[1722403582646,3.04949,3279.3,3278.7,7.41]
[1722403582647,3.04962,3279.1,3278.7,7.41]
[1722403582819,3.04972,3279.0,3278.7,35.0]
[1722403583150,0.09290555,3278.9,3278.7,38.04901288]
[1722403583508,3.04961,3279.1,3278.7,38.04901288]
[1722403583909,3.04986,3278.9,3278.7,35.0]
[1722403584550,0.09290555,3278.8,3278.7,35.0]
[1722403584901,3.04971,3279.0,3278.7,35.0]
[1722403585144,3.0498,3278.9,3278.7,35.0]
[1722403585341,3.14270555,3278.9,3278.7,35.0]
[1722403585703,0.09290555,3278.9,3278.5,2.4051]
[1722403585903,0.09290555,3278.9,3278.6,0.545536]
[1722403586128,3.04961,3279.1,3278.6,0.545536]
[1722403586330,0.09280092,3278.8,3278.7,35.0]
[1722403586636,3.04961,3279.1,3278.7,35.0]
[1722403586847,0.09280092,3279.0,3278.7,35.0]
[1722403587041,3.14258092,3279.0,3278.7,35.0]
[1722403587546,0.09280092,3279.0,3278.7,35.0]
[1722403588043,3.04986,3278.9,3278.7,35.0]
[1722403588245,6.19255852,3278.8,3278.7,35.0]
[1722403588453,3.05018,3278.5,3278.1,3.0]
[1722403588659,3.05018,3278.5,3277.9,5.4102]
[1722403588952,3.05005,3278.7,3278.0,35.0]
[1722403589136,0.09274862,3278.4,3278.1,9.16054518]
[1722403589448,3.0499,3278.8,3278.1,6.11001518]
[1722403589661,3.0499,3278.8,3278.1,6.1115323]
[1722403589806,0.09274862,3278.7,3278.2,35.0]
[1722403590747,0.09274862,3278.7,3278.3,2.3612023]
[1722403591100,3.04967,3279.1,3278.4,3.05026]
[1722403591317,0.09271122,3278.6,3278.5,35.60214073]
[1722403591633,3.04971,3279.0,3278.5,35.60214073]
[1722403591943,0.09271122,3278.9,3278.5,35.54114623]
[1722403592652,0.09271122,3278.9,3278.6,0.06099454]
[1722403592855,0.09271122,3278.9,3278.6,3.11000742]
[1722403593209,3.14251122,3278.9,3278.6,3.04901288]
[1722403593537,3.05,3278.7,3278.5,35.0]
[1722403593936,0.092857,3278.6,3278.5,35.0]
[1722403594450,3.0498,3278.9,3278.5,35.0]
[1722403594661,3.0498,3278.9,3278.5,38.04901288]
[1722403594812,0.092857,3278.8,3278.5,38.04901288]
[1722403595232,1.91531279,3279.2,3278.5,38.04901288]
[1722403595555,3.04971,3279.0,3278.6,0.06100011]
[1722403595960,0.09284206,3278.9,3278.6,0.06100011]
[1722403596156,0.09284206,3278.9,3278.7,3.04901288]
[1722403596946,3.14267206,3278.9,3278.3,2.3002]
[1722403597277,3.14267206,3278.9,3278.4,35.0]
[1722403597278,3.04999,3278.7,3278.4,35.0]
[1722403598077,0.09284206,3278.6,3278.4,35.0]
[1722403598577,3.04999,3278.7,3278.4,35.0]
[1722403598878,0.09284206,3278.6,3278.4,35.0]
[1722403599675,3.0499,3278.8,3278.4,35.0]
[1722403599863,3.0499,3278.8,3278.4,38.04901288]
[1722403600178,0.09284206,3278.7,3278.4,38.04901288]
[1722403600344,0.09284206,3278.7,3278.4,3.04901288]
[1722403600542,0.09284206,3278.7,3278.1,6.05053]
[1722403600763,0.09284206,3278.7,3278.2,2.3984]
[1722403600987,0.09284206,3278.7,3278.5,35.0]
[1722403602142,3.14284206,3278.7,3278.5,35.0]
[1722403602381,0.09284206,3278.7,3278.5,35.0]
[1722403602876,3.04974,3279.0,3278.5,35.0]
[1722403602877,0.09284206,3278.6,3278.5,35.0]
[1722403603240,3.04999,3278.7,3278.5,38.04901288]
[1722403603441,0.09284206,3278.6,3278.5,38.04901288]
[1722403603641,3.04999,3278.7,3278.5,38.04901288]
[1722403603949,0.09284206,3278.6,3278.5,38.04901288]
[1722403604274,3.04999,3278.7,3278.5,38.04901288]
[1722403604634,3.04974,3279.0,3278.6,3.04901288]
[1722403607741,3.04974,3279.0,3278.3,3.0503]
[1722403607940,3.0498,3278.9,3278.2,2.3984]
[1722403608276,3.0498,3278.9,3278.7,35.0]
[1722403608973,3.04971,3279.0,3278.7,35.0]
[1722403609978,0.0897249,3278.9,3278.7,35.0]
[1722403610381,0.0897249,3278.9,3278.7,38.04901288]
[1722403610689,0.0897249,3278.8,3278.7,38.04901288]
[1722403611090,3.04983,3278.9,3278.7,38.04901288]
[1722403611292,0.0897249,3278.8,3278.7,35.0]
[1722403612946,3.04983,3278.9,3278.7,35.0]
[1722403613386,0.0897249,3278.8,3278.7,35.0]
[1722403614197,3.04961,3279.1,3278.7,35.0]
[1722403614468,0.0897249,3279.0,3278.8,2.3994]
[1722403616103,0.0897249,3279.0,3278.9,35.0]
[1722403617816,0.0897249,3279.0,3278.8,2.3994]
[1722403618513,0.0897249,3279.0,3278.8,37.3994]
[1722403619077,0.0897249,3279.0,3278.8,35.0]
[1722403619275,3.0498,3278.9,3278.4,2.3081]
[1722403619517,3.13966986,3278.8,3278.1,12.49577]
[1722403619712,3.13966986,3278.8,3278.2,1.249577]
[1722403619887,3.13966986,3278.8,3278.2,36.249577]
[1722403620473,0.08973986,3278.8,3278.2,39.299997]
[1722403620701,3.0498,3278.9,3278.2,39.299997]
[1722403620926,0.08973986,3278.7,3278.2,39.299997]
[1722403621094,3.0498,3278.9,3278.3,6.09934288]
[1722403621630,0.08973986,3278.8,3278.3,3.05033]
[1722403621842,3.05,3278.7,3278.4,35.0]
[1722403622188,0.08973986,3278.6,3278.4,35.0]
[1722403622409,3.04994,3278.8,3278.4,35.0]
[1722403622791,0.08973986,3278.7,3278.4,35.0]
[1722403623096,0.08973986,3278.7,3278.4,38.04901288]
[1722403623933,0.08973986,3278.6,3278.4,38.04901288]
[1722403624430,3.04971,3279.0,3278.4,41.09926288]
[1722403624629,0.08973986,3278.9,3278.5,2.46059757]
[1722403624786,0.08973986,3278.9,3278.6,2.30022733]
[1722403624989,3.04962,3279.1,3278.6,2.30022733]
[1722403625306,3.04947,3279.3,3278.6,2.30022733]
[1722403625307,4.96739821,3279.0,3278.6,2.30022733]
[1722403625512,2.00742807,3279.0,3278.6,2.30022733]
[1722403625701,0.08973986,3279.0,3278.7,0.78109249]
[1722403626228,0.08973986,3279.0,3278.8,35.0]
[1722403626540,1.91768821,3279.1,3278.8,35.0]
[1722403627647,1.91768821,3279.4,3279.1,3.04953]
[1722403627933,1.91768821,3279.7,3279.2,0.304953]
[1722403628107,0.08672239,3279.3,3279.2,0.06098261]
[1722403628288,1.91874003,3279.6,3279.2,35.0]
[1722403628494,0.08672239,3279.3,3279.2,35.0]
[1722403628825,4.96813039,3279.8,3279.2,35.0]
[1722403628998,0.08672239,3279.3,3279.2,35.0]
[1722403629195,4.96813039,3279.8,3279.2,38.04901288]
[1722403629427,0.08672239,3279.3,3279.2,38.04901288]
[1722403629741,0.08672239,3279.3,3279.2,41.09853288]
[1722403630029,1.91917039,3279.8,3279.2,41.09853288]
[1722403630231,0.08672239,3279.3,3279.2,41.09853288]
[1722403630443,1.91917039,3279.9,3279.3,2.76871184]
[1722403630645,1.91917039,3279.9,3279.4,2.3452]
[1722403630844,4.96804039,3279.9,3279.4,2.3452]
[1722403631146,4.96827039,3279.7,3279.2,38.04901288]
[1722403631299,3.0491,3279.7,3279.2,38.04901288]
[1722403631618,4.96569244,3279.7,3279.2,38.04901288]
[1722403631823,1.91659244,3279.7,3279.3,3.04901288]
[1722403632140,1.91664548,3279.8,3279.3,3.04901288]
[1722403632431,3.04911,3279.7,3279.3,3.04901288]
[1722403632854,1.91664548,3279.8,3279.3,3.10999509]
[1722403633057,3.04887,3279.9,3279.4,0.50079145]
[1722403633363,7.29,3280.0,3279.5,2.2854]
[1722403633565,7.29,3280.0,3279.5,5.33462]
[1722403634411,7.29,3280.0,3279.6,3.04911]
[1722403634608,7.29,3280.0,3279.6,3.1100881]
[1722403634860,7.29,3280.0,3279.7,3.89351081]
[1722403635036,7.29,3280.0,3279.8,3.04895]
[1722403635268,7.29,3280.0,3279.9,2.2854]
[1722403635570,3.04834,3280.5,3279.9,5.33425]
[1722403635768,5.0272,3281.1,3279.9,5.33425]
[1722403635769,3.04824,3280.6,3280.0,0.06097071]
[1722403636000,4.96406467,3280.6,3280.0,0.60049278]
[1722403636271,3.04831,3280.5,3280.0,0.53952207]
[1722403637046,3.04831,3280.5,3280.1,0.06096722]
[1722403637245,3.04831,3280.5,3280.0,0.53952207]
[1722403637983,3.04831,3280.5,3279.9,2.2854]
[1722403638766,3.04822,3280.6,3280.0,0.06096726]
[1722403639681,3.04838,3280.5,3280.0,0.06096726]
[1722403640832,0.08753142,3280.4,3280.0,0.06096726]
[1722403641231,3.04822,3280.6,3280.0,3.10973726]
[1722403641500,0.08753142,3280.3,3280.1,0.53951373]
[1722403641656,3.04814,3280.7,3280.1,0.53951373]
[1722403641839,0.08754265,3280.5,3280.1,0.53951373]
[1722403642049,3.04814,3280.7,3280.1,3.58818373]
[1722403642290,0.08754265,3280.4,3280.1,3.58818373]
[1722403642447,3.04787,3281.0,3280.2,0.42588244]
[1722403642448,3.04798,3280.9,3280.2,0.42588244]
[1722403642633,0.08754265,3280.3,3280.2,0.42588244]
[1722403642839,3.04787,3281.0,3280.2,0.42588244]
[1722403643057,3.04795,3280.9,3280.2,0.42588244]
[1722403643256,3.04819,3280.7,3280.2,0.06096734]
[1722403643863,3.04819,3280.7,3280.3,2.3468]
[1722403644085,0.08754265,3280.6,3280.3,2.3468]
[1722403649010,3.04804,3280.8,3280.3,2.3468]
[1722403649165,0.08754265,3280.5,3280.3,2.3468]
[1722403649361,0.08754265,3280.5,3280.3,2.94639511]
[1722403649555,4.12113,3280.7,3280.3,2.3468]
[1722403649756,0.08790582,3280.4,3280.3,2.3468]
[1722403650003,4.12113,3280.7,3280.3,2.3468]
[1722403650176,0.08790208,3280.4,3280.3,2.3468]
[1722403650361,4.12113,3280.7,3280.3,2.3468]
[1722403650560,0.08790208,3280.4,3280.3,2.3468]
[1722403650758,1.073,3280.7,3280.3,2.94639311]
[1722403651013,0.08790208,3280.4,3280.3,2.94639311]
[1722403651180,1.073,3280.7,3280.3,2.94639311]
[1722403651379,0.08790208,3280.4,3280.3,2.94639311]
[1722403651621,4.12095,3280.9,3280.3,2.94639311]
[1722403651797,0.08790208,3280.4,3280.3,2.94639311]
[1722403651999,1.073,3280.9,3280.3,6.05585872]
[1722403652197,1.073,3280.9,3280.3,3.00735872]
[1722403652523,0.08790208,3280.8,3280.3,6.05583872]
[1722403652724,0.08790208,3280.8,3280.4,0.91044187]
[1722403653299,0.08790208,3280.8,3280.4,4.01980415]
[1722403653927,0.08790208,3280.8,3280.4,0.97140415]
[1722403656342,0.08790208,3280.8,3280.6,3.04817]
[1722403656501,0.08790208,3280.8,3280.7,0.06095342]
[1722403656700,0.08801065,3280.8,3280.7,0.61761576]
[1722403657044,3.04767,3281.2,3280.7,0.61761576]
[1722403657196,0.08804058,3280.8,3280.5,5.50581]
[1722403657399,4.12067,3281.2,3280.5,5.50581]
[1722403657726,0.08804058,3280.7,3280.5,5.50581]
[1722403658038,4.12067,3281.2,3280.5,5.50581]
[1722403658246,0.08804058,3280.6,3280.5,6.55958419]
[1722403658850,4.12067,3281.2,3280.5,6.55958419]
[1722403659197,0.08804058,3280.6,3280.5,6.55958419]
[1722403659490,4.95593436,3281.8,3280.7,3.04812]
[1722403659491,2.2645,3281.8,3280.7,3.04812]
[1722403659631,3.0472,3281.7,3280.8,3.77416355]
[1722403659831,3.04739,3281.5,3280.9,3.04794]
[1722403660399,3.04739,3281.5,3280.8,2.70116355]
[1722403660582,3.0472,3281.7,3281.0,3.04784]
[1722403660736,3.0472,3281.7,3281.1,0.3657313]
[1722403661361,3.04754,3281.4,3280.8,2.640212]
[1722403661670,3.04754,3281.4,3280.8,5.688242]
[1722403662456,3.04731,3281.6,3280.9,4.12093]
[1722403662674,3.04731,3281.6,3280.9,4.1818803]
[1722403663295,1.073,3282.1,3281.1,1.073]
[1722403663444,1.073,3281.9,3281.2,0.650269]
[1722403663972,3.04728,3281.7,3281.2,0.650269]
[1722403664852,3.04737,3281.6,3281.2,0.650269]
[1722403665202,3.04737,3281.6,3281.0,2.3819]
[1722403666077,3.04728,3281.7,3281.0,2.3819]
[1722403666078,3.04741,3281.5,3281.0,2.3819]
[1722403670577,0.0884859,3281.4,3281.0,2.3819]
[1722403671824,0.0884859,3281.4,3281.0,5.42972]
[1722403672113,3.04721,3281.7,3281.1,0.71122045]
[1722403672260,0.0885046,3281.3,3281.1,4.83196045]
[1722403672460,3.04721,3281.7,3281.2,2.4216]
[1722403672766,3.04721,3281.7,3281.3,0.72535605]
[1722403672968,0.08852705,3281.6,3281.3,0.72535605]
[1722403673308,3.0471,3281.8,3281.4,35.0]
[1722403673507,0.08852705,3281.5,3281.4,35.0]
[1722403673804,3.0471,3281.8,3281.4,35.0]
[1722403674136,0.08852705,3281.5,3281.4,35.0]
[1722403674413,3.0471,3281.8,3281.4,35.0]
[1722403674613,0.08852705,3281.5,3281.4,35.0]
[1722403674815,3.04723,3281.7,3281.4,35.0]
[1722403674965,0.08852705,3281.5,3281.4,35.0]
[1722403675165,3.04729,3281.6,3281.4,35.0]
[1722403675371,3.04723,3281.7,3281.4,35.0]
[1722403675372,3.04738,3281.5,3281.4,35.0]
[1722403675628,3.13595194,3281.5,3281.4,35.0]
[1722403676363,3.13595194,3281.5,3281.2,2.4216]
[1722403677109,3.13595194,3281.5,3281.3,35.0]
[1722403677670,3.04747,3281.4,3281.3,35.0]
[1722403677864,3.04786,3281.0,3280.5,2.2783]
[1722403678135,3.04786,3281.0,3280.6,0.52783]
[1722403678288,0.08857194,3280.9,3280.7,35.0]
[1722403678485,0.08857194,3280.9,3280.8,3.0]
[1722403678800,3.04768,3281.2,3280.8,3.0]
[1722403678996,3.04759,3281.3,3280.8,6.04901288]
[1722403679220,3.04751,3281.4,3280.8,9.39631288]
[1722403679417,3.04751,3281.4,3280.8,6.3473]
[1722403679716,3.04751,3281.4,3280.9,35.0]
[1722403679912,0.08851958,3281.3,3280.9,35.0]
[1722403680117,0.08851958,3281.3,3281.0,2.2743]
[1722403680288,3.04758,3281.3,3281.1,3.04901288]
[1722403680490,0.0884223,3281.2,3280.8,3.0]
[1722403680694,0.0884223,3281.2,3280.9,35.0]
[1722403680893,3.04758,3281.3,3280.9,35.0]
[1722403681088,0.0884223,3281.1,3280.9,35.0]
[1722403681291,3.04748,3281.4,3281.0,3.04901288]
[1722403681489,3.04734,3281.6,3281.0,3.04901288]
[1722403681827,3.04734,3281.6,3281.1,2.4255]
[1722403682125,0.08845972,3281.5,3281.2,35.0]
[1722403683124,10.3371,3281.8,3281.2,35.0]
[1722403683423,10.3371,3281.8,3281.3,3.04901288]
[1722403683589,0.08850459,3281.7,3281.3,3.04901288]
[1722403683930,10.3371,3281.8,3281.1,2.4255]
[1722403684106,0.08851956,3281.6,3281.4,35.0]
[1722403684309,10.3371,3281.8,3281.4,35.0]
[1722403684477,0.08851956,3281.5,3281.4,37.3185]
[1722403684679,7.29,3281.8,3281.4,37.3185]